[Event "*** Titled Tuesday Blitz"]
[Site "Chess.com"]
[Date "2018.12.04"]
[Round "1"]
[White "Tjktiger"]
[Black "dereito"]
[Result "1-0"]
[WhiteElo "2660"]
[BlackElo "2336"]
[TimeControl "180+2"]
[EndTime "13:05:33 PST"]
[Termination "Tjktiger won by checkmate"]

1. c4 {[%clk 0:03:01.9]} 1... f5 {[%clk 0:02:59.8]} 2. d4 {[%clk 0:02:58.5]}
2... Nf6 {[%clk 0:02:58.6]} 3. Nc3 {[%clk 0:02:59.4]} 3... e6 {[%clk 0:02:58.6]}
4. g3 {[%clk 0:02:55.5]} 4... Be7 {[%clk 0:02:57.8]} 5. Bg2 {[%clk 0:02:56.4]}
5... O-O {[%clk 0:02:59.4]} 6. Nf3 {[%clk 0:02:57.6]} 6... d6 {[%clk 0:03:00.9]}
7. O-O {[%clk 0:02:58.9]} 7... a5 {[%clk 0:03:02.3]} 8. Re1 {[%clk 0:02:59.1]}
8... Ne4 {[%clk 0:03:02.4]} 9. Nxe4 {[%clk 0:02:58.7]} 9... fxe4 {[%clk
0:03:03.4]} 10. Nd2 {[%clk 0:03:00.3]} 10... d5 {[%clk 0:03:04.7]} 11. f3 {[%clk
0:02:57.2]} 11... exf3 {[%clk 0:02:59.6]} 12. Nxf3 {[%clk 0:02:52.9]} 12... dxc4
{[%clk 0:02:57.5]} 13. Qc2 {[%clk 0:02:49.3]} 13... c5 {[%clk 0:02:53.9]} 14.
Qxc4 {[%clk 0:02:41.5]} 14... cxd4 {[%clk 0:02:55]} 15. Nxd4 {[%clk 0:02:39.2]}
15... Qb6 {[%clk 0:02:42.2]} 16. Be3 {[%clk 0:02:35.7]} 16... Nc6 {[%clk
0:02:42.9]} 17. Bxc6 {[%clk 0:02:25.6]} 17... bxc6 {[%clk 0:02:41.8]} 18. Nf5
{[%clk 0:02:25.9]} 18... Qb4 {[%clk 0:02:24.1]} 19. Nxe7+ {[%clk 0:02:26.4]}
19... Qxe7 {[%clk 0:02:21.8]} 20. Bc5 {[%clk 0:02:27.5]} 20... Ba6 {[%clk
0:02:11]} 21. Bxe7 {[%clk 0:02:21.8]} 21... Bxc4 {[%clk 0:02:12.2]} 22. Bxf8
{[%clk 0:02:23.3]} 22... Rxf8 {[%clk 0:02:13.5]} 23. b3 {[%clk 0:02:23.7]} 23...
Bb5 {[%clk 0:02:12]} 24. a4 {[%clk 0:02:23.9]} 24... Ba6 {[%clk 0:02:11.6]} 25.
Rac1 {[%clk 0:02:24.7]} 25... Bb7 {[%clk 0:02:08.4]} 26. Rc5 {[%clk 0:02:24.3]}
26... Ra8 {[%clk 0:02:09.4]} 27. Rd1 {[%clk 0:02:25]} 27... e5 {[%clk
0:01:41.8]} 28. Rd7 {[%clk 0:02:22.1]} 28... Bc8 {[%clk 0:01:42]} 29. Rd8+
{[%clk 0:02:22.1]} 29... Kf7 {[%clk 0:01:43.5]} 30. Rxc6 {[%clk 0:02:23.5]}
30... Bb7 {[%clk 0:01:44.6]} 31. Rxa8 {[%clk 0:02:18.9]} 31... Bxa8 {[%clk
0:01:46.5]} 32. Rc5 {[%clk 0:02:17.3]} 32... Ke6 {[%clk 0:01:44.3]} 33. Rxa5
{[%clk 0:02:18.3]} 33... Bd5 {[%clk 0:01:46]} 34. Rxd5 {[%clk 0:02:14.9]} 34...
Kxd5 {[%clk 0:01:46.9]} 35. Kf2 {[%clk 0:02:16.5]} 35... Kd4 {[%clk 0:01:48.3]}
36. a5 {[%clk 0:02:17.1]} 36... Kc5 {[%clk 0:01:49.3]} 37. Ke3 {[%clk
0:02:18.3]} 37... Kb5 {[%clk 0:01:49.2]} 38. b4 {[%clk 0:02:19.6]} 38... Kxb4
{[%clk 0:01:50.4]} 39. a6 {[%clk 0:02:20.7]} 39... Kc5 {[%clk 0:01:51.1]} 40. a7
{[%clk 0:02:21.9]} 40... Kd5 {[%clk 0:01:53]} 41. a8=Q+ {[%clk 0:02:23.3]} 41...
Ke6 {[%clk 0:01:54.9]} 42. Ke4 {[%clk 0:02:24.5]} 42... Kf6 {[%clk 0:01:55.5]}
43. h4 {[%clk 0:02:26.1]} 43... Kg6 {[%clk 0:01:56.5]} 44. g4 {[%clk 0:02:26.1]}
44... h5 {[%clk 0:01:57.2]} 45. Qc6+ {[%clk 0:02:27.1]} 45... Kh7 {[%clk
0:01:58.3]} 46. g5 {[%clk 0:02:25.6]} 46... g6 {[%clk 0:01:59.3]} 47. Kxe5
{[%clk 0:02:26.3]} 47... Kg8 {[%clk 0:02:00.2]} 48. Kf6 {[%clk 0:02:26]} 48...
Kh8 {[%clk 0:02:01.2]} 49. Qe8+ {[%clk 0:02:27]} 49... Kh7 {[%clk 0:02:00.5]}
50. Qxg6+ {[%clk 0:02:26.4]} 50... Kh8 {[%clk 0:02:01.5]} 51. Qg7# {[%clk
0:02:27.8]} 1-0

[Event "*** Titled Tuesday Blitz"]
[Site "Chess.com"]
[Date "2018.12.04"]
[Round "1"]
[White "Hikaru"]
[Black "ST-Sandavagur"]
[Result "1-0"]
[WhiteElo "3038"]
[BlackElo "2472"]
[TimeControl "180+2"]
[EndTime "13:05:43 PST"]
[Termination "Hikaru won by resignation"]

1. d4 {[%clk 0:03:00.7]} 1... e6 {[%clk 0:02:59.4]} 2. c4 {[%clk 0:02:54.5]}
2... Nf6 {[%clk 0:03:00.2]} 3. Nf3 {[%clk 0:02:55.1]} 3... b6 {[%clk 0:02:59]}
4. g3 {[%clk 0:02:51.9]} 4... Bb7 {[%clk 0:02:58.9]} 5. Bg2 {[%clk 0:02:53.2]}
5... Bb4+ {[%clk 0:02:59.8]} 6. Nbd2 {[%clk 0:02:52]} 6... O-O {[%clk
0:02:59.1]} 7. O-O {[%clk 0:02:39.1]} 7... d5 {[%clk 0:02:59.6]} 8. a3 {[%clk
0:02:38.6]} 8... Bd6 {[%clk 0:02:57.2]} 9. Qc2 {[%clk 0:02:29.7]} 9... Nbd7
{[%clk 0:02:55.5]} 10. b3 {[%clk 0:02:29.5]} 10... a5 {[%clk 0:02:38.8]} 11. Bb2
{[%clk 0:02:27.2]} 11... Ne4 {[%clk 0:02:23.4]} 12. Rfd1 {[%clk 0:02:14.6]}
12... f5 {[%clk 0:02:21]} 13. Ne5 {[%clk 0:02:15.2]} 13... Nxd2 {[%clk
0:01:55.4]} 14. Rxd2 {[%clk 0:02:15]} 14... f4 {[%clk 0:01:50.6]} 15. cxd5
{[%clk 0:02:14.6]} 15... Bxd5 {[%clk 0:01:33.8]} 16. Bxd5 {[%clk 0:01:58.5]}
16... exd5 {[%clk 0:01:35.7]} 17. Qc6 {[%clk 0:01:59.2]} 17... Nxe5 {[%clk
0:01:03.6]} 18. dxe5 {[%clk 0:01:55.1]} 18... Bc5 {[%clk 0:01:05.1]} 19. Bd4
{[%clk 0:01:51.6]} 19... fxg3 {[%clk 0:00:51.2]} 20. hxg3 {[%clk 0:01:46.4]}
20... Qg5 {[%clk 0:00:52.5]} 21. Qxd5+ {[%clk 0:01:44.3]} 21... Kh8 {[%clk
0:00:53.2]} 22. Bxc5 {[%clk 0:01:45.7]} 22... Rfd8 {[%clk 0:00:23.5]} 23. Bd6
{[%clk 0:01:43.2]} 1-0

[Event "*** Titled Tuesday Blitz"]
[Site "Chess.com"]
[Date "2018.12.04"]
[Round "1"]
[White "Markov_Mikhail"]
[Black "orrbaverlekszarnyon"]
[Result "1-0"]
[WhiteElo "2600"]
[BlackElo "2260"]
[TimeControl "180+2"]
[EndTime "13:05:46 PST"]
[Termination "Markov_Mikhail won by resignation"]

1. c4 {[%clk 0:02:51.9]} 1... e6 {[%clk 0:02:59.9]} 2. Nf3 {[%clk 0:02:50]} 2...
d5 {[%clk 0:03:00]} 3. g3 {[%clk 0:02:49.6]} 3... c5 {[%clk 0:03:00.8]} 4. Bg2
{[%clk 0:02:50]} 4... Nc6 {[%clk 0:03:01.7]} 5. cxd5 {[%clk 0:02:49.5]} 5...
exd5 {[%clk 0:03:02.4]} 6. O-O {[%clk 0:02:50.3]} 6... Nf6 {[%clk 0:03:03.4]} 7.
d4 {[%clk 0:02:49.8]} 7... Be7 {[%clk 0:03:04.3]} 8. Nc3 {[%clk 0:02:49.9]} 8...
O-O {[%clk 0:03:05.1]} 9. dxc5 {[%clk 0:02:40.4]} 9... Bxc5 {[%clk 0:03:03.3]}
10. a3 {[%clk 0:02:30.1]} 10... Bg4 {[%clk 0:02:48.4]} 11. b4 {[%clk 0:02:24.3]}
11... Bb6 {[%clk 0:02:44.6]} 12. Bb2 {[%clk 0:02:25]} 12... Re8 {[%clk
0:02:43.1]} 13. h3 {[%clk 0:02:15.7]} 13... Bh5 {[%clk 0:02:42.4]} 14. g4 {[%clk
0:02:11.5]} 14... Bg6 {[%clk 0:02:41.9]} 15. Na4 {[%clk 0:02:12.7]} 15... Bc7
{[%clk 0:02:31.8]} 16. Rc1 {[%clk 0:02:05.8]} 16... Be4 {[%clk 0:02:29.3]} 17.
Nc5 {[%clk 0:02:02.5]} 17... Bxf3 {[%clk 0:02:29.5]} 18. Bxf3 {[%clk 0:02:01.8]}
18... Qd6 {[%clk 0:02:27.9]} 19. Re1 {[%clk 0:01:57.6]} 19... Qh2+ {[%clk
0:02:24.3]} 20. Kf1 {[%clk 0:01:44.8]} 20... Qxh3+ {[%clk 0:02:22.5]} 21. Bg2
{[%clk 0:01:44.6]} 21... Qxg4 {[%clk 0:02:22.8]} 22. Bxf6 {[%clk 0:01:36.3]}
22... gxf6 {[%clk 0:02:19.7]} 23. Nxb7 {[%clk 0:01:35.7]} 23... Bb6 {[%clk
0:01:57.3]} 24. Rxc6 {[%clk 0:01:33.1]} 24... Qf4 {[%clk 0:01:51.9]} 25. Nc5
{[%clk 0:01:31.4]} 25... Rac8 {[%clk 0:01:49.9]} 26. Rxc8 {[%clk 0:01:25.2]}
26... Rxc8 {[%clk 0:01:51.2]} 27. Qxd5 {[%clk 0:01:26.1]} 27... a5 {[%clk
0:01:48.5]} 28. Nd3 {[%clk 0:01:21.1]} 28... Qd2 {[%clk 0:01:35.1]} 29. Qb7
{[%clk 0:01:09.2]} 1-0

[Event "*** Titled Tuesday Blitz"]
[Site "Chess.com"]
[Date "2018.12.04"]
[Round "1"]
[White "KRASAVCHIK2002"]
[Black "GMG"]
[Result "0-1"]
[WhiteElo "2356"]
[BlackElo "2673"]
[TimeControl "180+2"]
[EndTime "13:05:48 PST"]
[Termination "GMG won by resignation"]

1. e4 {[%clk 0:03:01.9]} 1... c5 {[%clk 0:03:00.7]} 2. Nf3 {[%clk 0:03:02.5]}
2... Nc6 {[%clk 0:03:01]} 3. d4 {[%clk 0:03:03.6]} 3... cxd4 {[%clk 0:03:02.9]}
4. Nxd4 {[%clk 0:03:04.8]} 4... Qb6 {[%clk 0:03:04.6]} 5. Nb3 {[%clk 0:03:04.7]}
5... Nf6 {[%clk 0:03:05.8]} 6. Nc3 {[%clk 0:03:05.2]} 6... e6 {[%clk 0:03:06.6]}
7. Be3 {[%clk 0:03:05.1]} 7... Qc7 {[%clk 0:03:07.9]} 8. a3 {[%clk 0:03:01.5]}
8... a6 {[%clk 0:02:58.2]} 9. Be2 {[%clk 0:03:01.8]} 9... b5 {[%clk 0:02:58.9]}
10. O-O {[%clk 0:03:02.6]} 10... Bb7 {[%clk 0:02:58.9]} 11. Nc5 {[%clk
0:02:49.3]} 11... Be7 {[%clk 0:02:51.2]} 12. Nxb7 {[%clk 0:02:48.6]} 12... Qxb7
{[%clk 0:02:53.1]} 13. f4 {[%clk 0:02:47.6]} 13... d6 {[%clk 0:02:51.5]} 14. Bf3
{[%clk 0:02:47.5]} 14... O-O {[%clk 0:02:51.2]} 15. Qe1 {[%clk 0:02:35.2]} 15...
Qc7 {[%clk 0:02:47.5]} 16. Qg3 {[%clk 0:02:32.4]} 16... Rac8 {[%clk 0:02:48.5]}
17. Rac1 {[%clk 0:02:17.4]} 17... Na5 {[%clk 0:02:38.7]} 18. e5 {[%clk
0:02:11.4]} 18... dxe5 {[%clk 0:02:40.6]} 19. fxe5 {[%clk 0:02:12.5]} 19... Bc5
{[%clk 0:02:21.1]} 20. Be2 {[%clk 0:00:48.2]} 20... Bxe3+ {[%clk 0:02:14.6]} 21.
Qxe3 {[%clk 0:00:49.5]} 21... Nd7 {[%clk 0:02:16.2]} 22. Ne4 {[%clk 0:00:50.8]}
22... Qxe5 {[%clk 0:02:10.4]} 23. Qd2 {[%clk 0:00:32.6]} 23... Qxe4 {[%clk
0:02:07.2]} 24. Bf3 {[%clk 0:00:31.5]} 24... Nc4 {[%clk 0:01:49.5]} 25. Qxd7
{[%clk 0:00:32.1]} 25... Qe3+ {[%clk 0:01:50.3]} 26. Kh1 {[%clk 0:00:33.4]}
26... Ne5 {[%clk 0:01:50.3]} 27. Rce1 {[%clk 0:00:26.1]} 0-1

[Event "*** Titled Tuesday Blitz"]
[Site "Chess.com"]
[Date "2018.12.04"]
[Round "1"]
[White "VincentBlom"]
[Black "Iyael"]
[Result "1-0"]
[WhiteElo "2512"]
[BlackElo "2128"]
[TimeControl "180+2"]
[EndTime "13:05:49 PST"]
[Termination "VincentBlom won by resignation"]

1. d4 {[%clk 0:03:01.9]} 1... Nf6 {[%clk 0:02:59.4]} 2. Bf4 {[%clk 0:03:01.8]}
2... g6 {[%clk 0:02:59.2]} 3. e3 {[%clk 0:03:02.9]} 3... Bg7 {[%clk 0:03:00.1]}
4. c3 {[%clk 0:03:04.4]} 4... d6 {[%clk 0:03:00.4]} 5. Nd2 {[%clk 0:03:05.7]}
5... O-O {[%clk 0:03:00.8]} 6. h3 {[%clk 0:03:05.8]} 6... Nbd7 {[%clk 0:02:56]}
7. Ngf3 {[%clk 0:03:06.5]} 7... b6 {[%clk 0:02:55.7]} 8. Bb5 {[%clk 0:03:05.5]}
8... Bb7 {[%clk 0:02:56.1]} 9. O-O {[%clk 0:03:06.7]} 9... c5 {[%clk 0:02:56.7]}
10. a4 {[%clk 0:03:04.5]} 10... a6 {[%clk 0:02:57.2]} 11. Bd3 {[%clk 0:03:04.1]}
11... Qc7 {[%clk 0:02:57.7]} 12. Bh2 {[%clk 0:03:01]} 12... e5 {[%clk
0:02:55.8]} 13. e4 {[%clk 0:03:02.1]} 13... Rfe8 {[%clk 0:02:52.9]} 14. d5
{[%clk 0:03:00.9]} 14... Rab8 {[%clk 0:02:47.7]} 15. Qe2 {[%clk 0:03:00.4]}
15... Nh5 {[%clk 0:02:47.8]} 16. Bxa6 {[%clk 0:02:57.9]} 16... Bxa6 {[%clk
0:02:48.6]} 17. Qxa6 {[%clk 0:02:59.8]} 17... Nf4 {[%clk 0:02:43.8]} 18. Bxf4
{[%clk 0:03:00.5]} 18... exf4 {[%clk 0:02:44.6]} 19. Qb5 {[%clk 0:02:56.3]}
19... Ne5 {[%clk 0:02:42.9]} 20. Nxe5 {[%clk 0:02:56.8]} 20... Bxe5 {[%clk
0:02:43.2]} 21. Nc4 {[%clk 0:02:53.6]} 21... g5 {[%clk 0:02:36.5]} 22. f3 {[%clk
0:02:53.7]} 22... h5 {[%clk 0:02:36.8]} 23. Kf2 {[%clk 0:02:54.5]} 23... Re7
{[%clk 0:02:30.6]} 24. Rfd1 {[%clk 0:02:55.5]} 24... Kg7 {[%clk 0:02:29.2]} 25.
Qc6 {[%clk 0:02:47.1]} 25... Qd8 {[%clk 0:02:25.5]} 26. Rh1 {[%clk 0:02:34.5]}
26... Rc7 {[%clk 0:02:25.7]} 27. Qb5 {[%clk 0:02:35.4]} 27... Re7 {[%clk
0:02:26.5]} 28. Rad1 {[%clk 0:02:35]} 28... Re8 {[%clk 0:02:24.6]} 29. Rd2
{[%clk 0:02:31.7]} 29... f6 {[%clk 0:02:25.1]} 30. Ra1 {[%clk 0:02:22.7]} 30...
Rg8 {[%clk 0:02:24.9]} 31. Rdd1 {[%clk 0:02:15.1]} 31... Kf7 {[%clk 0:02:24.8]}
32. Ke2 {[%clk 0:02:14.6]} 32... Rg7 {[%clk 0:02:14.5]} 33. Kd2 {[%clk 0:02:15]}
33... Rg8 {[%clk 0:02:14.8]} 34. Kc2 {[%clk 0:02:16]} 34... Qc7 {[%clk
0:02:14.6]} 35. Kb1 {[%clk 0:02:15]} 35... Rgd8 {[%clk 0:02:14.3]} 36. Qb3
{[%clk 0:02:14.9]} 36... Rb7 {[%clk 0:02:13.3]} 37. Na3 {[%clk 0:02:16.1]} 37...
Ra8 {[%clk 0:02:11.5]} 38. Nb5 {[%clk 0:02:17.4]} 38... Qd7 {[%clk 0:02:12.4]}
39. Qc4 {[%clk 0:02:18.8]} 39... Rbb8 {[%clk 0:02:12.5]} 40. Kc2 {[%clk
0:02:20.1]} 40... Rg8 {[%clk 0:02:12.4]} 41. Qe2 {[%clk 0:02:20.1]} 41... Rgb8
{[%clk 0:02:12]} 42. Ra2 {[%clk 0:02:19.4]} 42... Ra5 {[%clk 0:02:12.7]} 43.
Rda1 {[%clk 0:02:20.4]} 43... Rba8 {[%clk 0:02:13.8]} 44. Qc4 {[%clk 0:02:21.7]}
44... Qe8 {[%clk 0:02:13.5]} 45. Nc7 {[%clk 0:02:16.9]} 45... Qd7 {[%clk
0:02:13.1]} 46. Nxa8 {[%clk 0:02:17.8]} 46... Rxa8 {[%clk 0:02:13.9]} 47. Qb5
{[%clk 0:02:19.3]} 47... Qe7 {[%clk 0:02:13.6]} 48. a5 {[%clk 0:02:15.8]} 48...
bxa5 {[%clk 0:02:13.7]} 49. Rxa5 {[%clk 0:02:17.5]} 49... Rc8 {[%clk 0:02:13.6]}
50. Ra7 {[%clk 0:02:18.1]} 50... Rc7 {[%clk 0:02:14.6]} 51. Qb6 {[%clk
0:02:19.7]} 1-0

[Event "*** Titled Tuesday Blitz"]
[Site "Chess.com"]
[Date "2018.12.04"]
[Round "1"]
[White "champ2005"]
[Black "MFguimaraes"]
[Result "0-1"]
[WhiteElo "2660"]
[BlackElo "2374"]
[TimeControl "180+2"]
[EndTime "13:05:55 PST"]
[Termination "MFguimaraes won by checkmate"]

1. e4 {[%clk 0:02:59.7]} 1... e5 {[%clk 0:03:00.7]} 2. Nf3 {[%clk 0:03:00.4]}
2... Nc6 {[%clk 0:03:01.7]} 3. Bc4 {[%clk 0:02:59.4]} 3... Nf6 {[%clk
0:03:02.4]} 4. Ng5 {[%clk 0:02:59.4]} 4... d5 {[%clk 0:03:03.5]} 5. exd5 {[%clk
0:03:00.6]} 5... Na5 {[%clk 0:03:04.5]} 6. Bb5+ {[%clk 0:03:01.6]} 6... c6
{[%clk 0:03:05.1]} 7. dxc6 {[%clk 0:03:02.8]} 7... bxc6 {[%clk 0:03:04.8]} 8.
Bd3 {[%clk 0:03:03.9]} 8... Nd5 {[%clk 0:02:58.9]} 9. h4 {[%clk 0:03:04.4]} 9...
Nf4 {[%clk 0:02:55.9]} 10. Bf1 {[%clk 0:03:05]} 10... h6 {[%clk 0:02:51.7]} 11.
Ne4 {[%clk 0:03:05.6]} 11... Bf5 {[%clk 0:02:30.6]} 12. Nbc3 {[%clk 0:02:56]}
12... Bb4 {[%clk 0:02:14.9]} 13. g3 {[%clk 0:02:48]} 13... Nd5 {[%clk
0:02:08.3]} 14. Bg2 {[%clk 0:02:45.4]} 14... Nc4 {[%clk 0:01:57.8]} 15. O-O
{[%clk 0:02:42.1]} 15... O-O {[%clk 0:01:58]} 16. d3 {[%clk 0:02:40.7]} 16...
Nd6 {[%clk 0:01:58.5]} 17. Nxd6 {[%clk 0:02:39.2]} 17... Qxd6 {[%clk 0:01:50.5]}
18. Bd2 {[%clk 0:02:37.4]} 18... Nxc3 {[%clk 0:01:39.9]} 19. Bxc3 {[%clk
0:02:35.9]} 19... Bxc3 {[%clk 0:01:40.9]} 20. bxc3 {[%clk 0:02:37.2]} 20... Qc5
{[%clk 0:01:41.3]} 21. Qd2 {[%clk 0:02:33]} 21... Rad8 {[%clk 0:01:41.7]} 22.
Rfe1 {[%clk 0:02:33]} 22... Rfe8 {[%clk 0:01:40.7]} 23. Be4 {[%clk 0:02:11]}
23... Bxe4 {[%clk 0:01:38.2]} 24. Rxe4 {[%clk 0:02:12.9]} 24... f5 {[%clk
0:01:39.5]} 25. Rc4 {[%clk 0:01:59.1]} 25... Qxc4 {[%clk 0:01:37.8]} 26. Re1
{[%clk 0:01:51.1]} 26... Qxa2 {[%clk 0:01:36.5]} 27. c4 {[%clk 0:01:51]} 27...
Qa6 {[%clk 0:01:36.3]} 28. Qc3 {[%clk 0:01:51.5]} 28... e4 {[%clk 0:01:36.3]}
29. Ra1 {[%clk 0:01:50.1]} 29... Qb6 {[%clk 0:01:36.4]} 30. c5 {[%clk
0:01:50.1]} 30... Qb7 {[%clk 0:01:34]} 31. d4 {[%clk 0:01:48.7]} 31... Re7
{[%clk 0:01:30.4]} 32. Qe3 {[%clk 0:01:49.4]} 32... Qb2 {[%clk 0:01:28.2]} 33.
Ra6 {[%clk 0:01:49.5]} 33... Qxd4 {[%clk 0:01:28.3]} 34. Qb3+ {[%clk 0:01:50.6]}
34... Qd5 {[%clk 0:01:27.8]} 35. Qb4 {[%clk 0:01:48.1]} 35... e3 {[%clk
0:01:23.7]} 36. fxe3 {[%clk 0:01:46.6]} 36... Rxe3 {[%clk 0:01:23]} 37. Qf4
{[%clk 0:01:47.5]} 37... Qd1+ {[%clk 0:01:21.7]} 38. Kh2 {[%clk 0:01:47.1]}
38... Re2+ {[%clk 0:01:22.5]} 39. Kh3 {[%clk 0:01:48.1]} 39... Qh1# {[%clk
0:01:23.1]} 0-1

[Event "*** Titled Tuesday Blitz"]
[Site "Chess.com"]
[Date "2018.12.04"]
[Round "1"]
[White "Oligan22"]
[Black "DenisQ"]
[Result "0-1"]
[WhiteElo "2269"]
[BlackElo "2604"]
[TimeControl "180+2"]
[EndTime "13:06:04 PST"]
[Termination "DenisQ won by resignation"]

1. e4 {[%clk 0:03:01.9]} 1... c6 {[%clk 0:03:00.6]} 2. Nf3 {[%clk 0:03:01.3]}
2... d5 {[%clk 0:03:02.5]} 3. Nc3 {[%clk 0:03:02.9]} 3... Bg4 {[%clk 0:03:00.5]}
4. h3 {[%clk 0:03:03.2]} 4... Bh5 {[%clk 0:03:01.6]} 5. exd5 {[%clk 0:02:53.1]}
5... cxd5 {[%clk 0:03:03.5]} 6. Bb5+ {[%clk 0:02:49.8]} 6... Nc6 {[%clk
0:03:03.4]} 7. g4 {[%clk 0:02:50.7]} 7... Bg6 {[%clk 0:03:03.8]} 8. Ne5 {[%clk
0:02:51]} 8... Rc8 {[%clk 0:03:04.9]} 9. d4 {[%clk 0:02:42.9]} 9... e6 {[%clk
0:03:05.2]} 10. f4 {[%clk 0:02:35.9]} 10... Bb4 {[%clk 0:03:02.3]} 11. Nxc6
{[%clk 0:02:06.8]} 11... bxc6 {[%clk 0:03:02]} 12. Bd3 {[%clk 0:02:07.9]} 12...
Ne7 {[%clk 0:02:51.4]} 13. Qf3 {[%clk 0:02:00.3]} 13... Bxd3 {[%clk 0:02:47.6]}
14. Qxd3 {[%clk 0:02:00.6]} 14... O-O {[%clk 0:02:42.6]} 15. O-O {[%clk
0:01:57.8]} 15... c5 {[%clk 0:02:43.8]} 16. Be3 {[%clk 0:01:58.4]} 16... cxd4
{[%clk 0:02:40.7]} 17. Bxd4 {[%clk 0:01:58.8]} 17... Nc6 {[%clk 0:02:41.1]} 18.
a3 {[%clk 0:01:41.5]} 18... Bd6 {[%clk 0:02:21.8]} 19. Ne2 {[%clk 0:01:32.2]}
19... Nxd4 {[%clk 0:02:21.1]} 20. Nxd4 {[%clk 0:01:34.1]} 20... Qb6 {[%clk
0:02:20.3]} 21. b4 {[%clk 0:00:59.2]} 21... Rc4 {[%clk 0:02:19.3]} 22. Rad1
{[%clk 0:00:49.1]} 22... a5 {[%clk 0:02:19.6]} 23. Kh1 {[%clk 0:00:41.6]} 23...
axb4 {[%clk 0:02:19.7]} 24. axb4 {[%clk 0:00:43.5]} 24... Qxb4 {[%clk
0:02:20.2]} 25. f5 {[%clk 0:00:34.2]} 25... e5 {[%clk 0:02:20.3]} 26. Ne2 {[%clk
0:00:24.7]} 26... d4 {[%clk 0:02:15.4]} 27. Rb1 {[%clk 0:00:18.5]} 27... Qc5
{[%clk 0:02:15.5]} 28. Rb2 {[%clk 0:00:16]} 28... Rc8 {[%clk 0:02:14.8]} 29. Qd2
{[%clk 0:00:13.9]} 29... Rxc2 {[%clk 0:02:04.8]} 30. Rxc2 {[%clk 0:00:14.9]}
30... Qxc2 {[%clk 0:02:05.5]} 0-1

[Event "*** Titled Tuesday Blitz"]
[Site "Chess.com"]
[Date "2018.12.04"]
[Round "1"]
[White "eCztery"]
[Black "afgano29"]
[Result "0-1"]
[WhiteElo "2283"]
[BlackElo "2628"]
[TimeControl "180+2"]
[EndTime "13:06:08 PST"]
[Termination "afgano29 won by resignation"]

1. e4 {[%clk 0:02:59.9]} 1... c5 {[%clk 0:03:00.4]} 2. Nc3 {[%clk 0:03:01.8]}
2... Nc6 {[%clk 0:03:01.2]} 3. Bb5 {[%clk 0:03:02]} 3... Nd4 {[%clk 0:03:01.4]}
4. Nf3 {[%clk 0:03:00.1]} 4... e6 {[%clk 0:03:01.5]} 5. O-O {[%clk 0:02:59.1]}
5... Qc7 {[%clk 0:03:01.1]} 6. Nxd4 {[%clk 0:02:57.9]} 6... cxd4 {[%clk
0:03:03]} 7. Ne2 {[%clk 0:02:59.8]} 7... Bc5 {[%clk 0:03:03]} 8. c3 {[%clk
0:02:58.1]} 8... dxc3 {[%clk 0:03:01.5]} 9. bxc3 {[%clk 0:03:00]} 9... Nf6
{[%clk 0:03:01.1]} 10. d4 {[%clk 0:02:56.5]} 10... Be7 {[%clk 0:03:02]} 11. Bf4
{[%clk 0:02:54.6]} 11... Qa5 {[%clk 0:02:57.2]} 12. Rb1 {[%clk 0:02:36]} 12...
O-O {[%clk 0:02:56.8]} 13. Bd3 {[%clk 0:02:30.4]} 13... d6 {[%clk 0:02:54]} 14.
e5 {[%clk 0:02:20.1]} 14... dxe5 {[%clk 0:02:51.3]} 15. Bxe5 {[%clk 0:02:17.1]}
15... Qxa2 {[%clk 0:02:47.2]} 16. Ng3 {[%clk 0:02:05.9]} 16... Nd7 {[%clk
0:02:38.5]} 17. Qh5 {[%clk 0:01:07.6]} 17... f5 {[%clk 0:02:32.8]} 18. Nxf5
{[%clk 0:00:50.9]} 18... exf5 {[%clk 0:02:29.2]} 19. Bxf5 {[%clk 0:00:50.5]}
19... Nf6 {[%clk 0:02:26]} 20. Bxf6 {[%clk 0:00:48.3]} 20... Bxf5 {[%clk
0:02:26.7]} 21. Rxb7 {[%clk 0:00:20.9]} 21... Bxf6 {[%clk 0:01:55.4]} 22. Qxf5
{[%clk 0:00:21.8]} 22... Rf7 {[%clk 0:01:55.3]} 23. Rb5 {[%clk 0:00:18.6]} 23...
Bxd4 {[%clk 0:01:53.7]} 24. Qe4 {[%clk 0:00:19.8]} 24... Bxf2+ {[%clk
0:01:53.9]} 25. Kh1 {[%clk 0:00:20.4]} 25... Raf8 {[%clk 0:01:54.8]} 26. h3
{[%clk 0:00:20.4]} 26... Bb6 {[%clk 0:01:54.4]} 27. Rxf7 {[%clk 0:00:20.3]}
27... Qxf7 {[%clk 0:01:56.3]} 28. c4 {[%clk 0:00:17.7]} 28... Qf1+ {[%clk
0:01:56.4]} 29. Kh2 {[%clk 0:00:19.2]} 29... Bc7+ {[%clk 0:01:57.9]} 30. g3
{[%clk 0:00:18.2]} 30... Rf2+ {[%clk 0:01:57.9]} 0-1